[Event "Titled Tuesday Blitz September 13 Late 2022"]
[White "Kobo, Ori"]
[Black "Trost, Edvin"]
[WhiteFideId "2812320"]
[BlackFideId "1729519"]
[WhiteElo "2420"]
[BlackElo "2186"]
[Result "1-0"]
[Round "11"]
[TimeControl "180+1"]
[Date "2022.09.13"]
[WhiteClock "0:00:15"]
[BlackClock "0:00:06"]

1. Nf3 {[%clk 0:03:00]}  Nf6 {[%clk 0:02:17]} 2. c4 {[%clk 0:02:59]}  e6 {[%clk 0:02:17]} 3. g3 {[%clk 0:02:59]}  d5 {[%clk 0:02:17]} 4. Bg2 {[%clk 0:02:59]}  Be7 {[%clk 0:02:14]} 5. O-O {[%clk 0:02:59]}  O-O {[%clk 0:02:14]} 6. b3 {[%clk 0:02:59]}  b6 {[%clk 0:02:13]} 7. Bb2 {[%clk 0:03:00]}  Bb7 {[%clk 0:02:14]} 8. cxd5 {[%clk 0:03:00]}  exd5 {[%clk 0:02:14]} 9. e3 {[%clk 0:03:00]}  Nbd7 {[%clk 0:02:14]} 10. Nc3 {[%clk 0:03:00]}  Re8 {[%clk 0:02:13]} 11. Re1 {[%clk 0:02:58]}  a6 {[%clk 0:02:11]} 12. Rc1 {[%clk 0:02:54]}  Bf8 {[%clk 0:02:08]} 13. Re2 {[%clk 0:02:50]}  Rc8 {[%clk 0:02:06]} 14. d4 {[%clk 0:02:50]}  c5 {[%clk 0:02:03]} 15. Rec2 {[%clk 0:02:49]}  c4 {[%clk 0:01:53]} 16. bxc4 {[%clk 0:02:34]}  dxc4 {[%clk 0:01:52]} 17. a4 {[%clk 0:02:34]}  Ne4 {[%clk 0:01:41]} 18. Nxe4 {[%clk 0:02:29]}  Bxe4 {[%clk 0:01:42]} 19. Rxc4 {[%clk 0:02:29]}  Rxc4 {[%clk 0:01:42]} 20. Rxc4 {[%clk 0:02:30]}  b5 {[%clk 0:01:43]} 21. axb5 {[%clk 0:02:28]}  axb5 {[%clk 0:01:43]} 22. Rc1 {[%clk 0:02:26]}  Qa8 {[%clk 0:01:43]} 23. Ne1 {[%clk 0:02:18]}  Bxg2 {[%clk 0:01:44]} 24. Nxg2 {[%clk 0:02:19]}  Nb6 {[%clk 0:01:45]} 25. Qb3 {[%clk 0:02:11]}  Nc4 {[%clk 0:01:43]} 26. Bc3 {[%clk 0:01:54]}  Rb8 {[%clk 0:01:37]} 27. Nf4 {[%clk 0:01:45]}  Bd6 {[%clk 0:01:19]} 28. Nd3 {[%clk 0:01:34]}  h5 {[%clk 0:01:19]} 29. Qd1 {[%clk 0:01:00]}  h4 {[%clk 0:01:17]} 30. Qg4 {[%clk 0:00:57]}  hxg3 {[%clk 0:01:16]} 31. hxg3 {[%clk 0:00:58]}  Rc8 {[%clk 0:01:13]} 32. Ra1 {[%clk 0:00:49]}  Qb7 {[%clk 0:01:11]} 33. Ra7 {[%clk 0:00:46]}  Qxa7 {[%clk 0:00:54]} 34. Qxc8+ {[%clk 0:00:46]}  Kh7 {[%clk 0:00:54]} 35. Qf5+ {[%clk 0:00:43]}  Kg8 {[%clk 0:00:51]} 36. Qxb5 {[%clk 0:00:43]}  Qa2 {[%clk 0:00:50]} 37. Qe8+ {[%clk 0:00:33]}  Kh7 {[%clk 0:00:50]} 38. Qxf7 {[%clk 0:00:28]}  Qb1+ {[%clk 0:00:50]} 39. Ne1 {[%clk 0:00:29]}  Qb3 {[%clk 0:00:49]} 40. Qh5+ {[%clk 0:00:28]}  Kg8 {[%clk 0:00:49]} 41. Qd5+ {[%clk 0:00:28]}  Kh8 {[%clk 0:00:45]} 42. Qh5+ {[%clk 0:00:27]}  Kg8 {[%clk 0:00:44]} 43. Qe8+ {[%clk 0:00:28]}  Kh7 {[%clk 0:00:45]} 44. Qe4+ {[%clk 0:00:28]}  Kh8 {[%clk 0:00:44]} 45. Qc2 {[%clk 0:00:27]}  Qb7 {[%clk 0:00:44]} 46. Qe2 {[%clk 0:00:25]}  Nb6 {[%clk 0:00:38]} 47. e4 {[%clk 0:00:24]}  Na4 {[%clk 0:00:39]} 48. Bd2 {[%clk 0:00:21]}  Qb2 {[%clk 0:00:32]} 49. Qe3 {[%clk 0:00:21]}  Nb6 {[%clk 0:00:29]} 50. Qd3 {[%clk 0:00:18]}  Nd7 {[%clk 0:00:06]} 51. Nf3 {[%clk 0:00:18]}  Qa1+ {[%clk 0:00:05]} 52. Kg2 {[%clk 0:00:18]}  g5 {[%clk 0:00:04]} 53. e5 {[%clk 0:00:18]}  Be7 {[%clk 0:00:04]} 54. Qg6 {[%clk 0:00:16]}  Qa7 {[%clk 0:00:02]} 55. Qe8+ {[%clk 0:00:15]}  Nf8 {[%clk 0:00:01]} 56. Bxg5 {[%clk 0:00:15]}  Kg7 {[%clk 0:00:01]} 57. Qxe7+ {[%clk 0:00:15]}  Qxe7 {[%clk 0:00:01]} 58. Bxe7 {[%clk 0:00:16]}  Ng6 {[%clk 0:00:02]} 59. Bf6+ {[%clk 0:00:16]}  Kh6 {[%clk 0:00:03]} 60. d5 {[%clk 0:00:16]}  Kh5 {[%clk 0:00:04]} 61. d6 {[%clk 0:00:17]}  Kg4 {[%clk 0:00:04]} 62. Nh2+ {[%clk 0:00:16]}  Kf5 {[%clk 0:00:04]} 63. d7 {[%clk 0:00:16]}  Ke4 {[%clk 0:00:04]} 64. d8=Q {[%clk 0:00:17]}  Nf4+ {[%clk 0:00:05]} 65. gxf4 {[%clk 0:00:17]}  Kf5 {[%clk 0:00:06]} 66. Qd7+ {[%clk 0:00:16]}  Ke4 {[%clk 0:00:06]} 67. e6 {[%clk 0:00:17]}  Kf5 {[%clk 0:00:07]} 68. e7+ {[%clk 0:00:16]}  Kg6 {[%clk 0:00:05]} 69. e8=Q+ {[%clk 0:00:16]}  Kh6 {[%clk 0:00:06]} 70. Qg7# {[%clk 0:00:15]} 1-0


[Site "https://www.chess.com"]

[Event "Titled Tuesday Blitz September 13 Late 2022"]
[White "Korchmar, Vasiliy"]
[Black "Barria Zuniga, Daniel"]
[WhiteFideId "24131750"]
[BlackFideId "3400816"]
[WhiteElo "2370"]
[BlackElo "2414"]
[Result "0-1"]
[Round "11"]
[TimeControl "180+1"]
[Date "2022.09.13"]
[WhiteClock "0:00:01"]
[BlackClock "0:00:13"]

1. e4 {[%clk 0:03:00]}  c5 {[%clk 0:02:58]} 2. Nf3 {[%clk 0:03:01]}  e6 {[%clk 0:02:56]} 3. g3 {[%clk 0:03:01]}  Nc6 {[%clk 0:02:53]} 4. Bg2 {[%clk 0:03:01]}  Nf6 {[%clk 0:02:54]} 5. Qe2 {[%clk 0:02:59]}  e5 {[%clk 0:02:54]} 6. O-O {[%clk 0:02:58]}  Be7 {[%clk 0:02:54]} 7. Nc3 {[%clk 0:02:32]}  O-O {[%clk 0:02:48]} 8. d3 {[%clk 0:02:30]}  d6 {[%clk 0:02:46]} 9. Nd2 {[%clk 0:02:24]}  Nd4 {[%clk 0:02:39]} 10. Qd1 {[%clk 0:02:23]}  b5 {[%clk 0:02:40]} 11. h3 {[%clk 0:02:18]}  b4 {[%clk 0:02:39]} 12. Ne2 {[%clk 0:02:18]}  a5 {[%clk 0:02:39]} 13. f4 {[%clk 0:02:14]}  Nd7 {[%clk 0:02:22]} 14. Nc4 {[%clk 0:02:12]}  Nb6 {[%clk 0:02:19]} 15. Ne3 {[%clk 0:02:08]}  f6 {[%clk 0:02:14]} 16. c3 {[%clk 0:02:01]}  Nxe2+ {[%clk 0:02:12]} 17. Qxe2 {[%clk 0:02:01]}  Be6 {[%clk 0:02:04]} 18. h4 {[%clk 0:01:55]}  Qd7 {[%clk 0:02:02]} 19. c4 {[%clk 0:01:46]}  a4 {[%clk 0:01:57]} 20. Bf3 {[%clk 0:01:33]}  a3 {[%clk 0:01:50]} 21. b3 {[%clk 0:01:32]}  Kh8 {[%clk 0:01:42]} 22. Kh2 {[%clk 0:01:28]}  Rae8 {[%clk 0:01:41]} 23. f5 {[%clk 0:01:15]}  Bf7 {[%clk 0:01:39]} 24. g4 {[%clk 0:01:15]}  Nc8 {[%clk 0:01:23]} 25. Nd5 {[%clk 0:01:02]}  Na7 {[%clk 0:01:16]} 26. Be3 {[%clk 0:01:00]}  Nc6 {[%clk 0:01:17]} 27. g5 {[%clk 0:00:57]}  Nd4 {[%clk 0:01:16]} 28. Bxd4 {[%clk 0:00:57]}  exd4 {[%clk 0:01:12]} 29. Rg1 {[%clk 0:00:35]}  Bxd5 {[%clk 0:01:06]} 30. cxd5 {[%clk 0:00:36]}  Qd8 {[%clk 0:01:06]} 31. Bh5 {[%clk 0:00:34]}  fxg5 {[%clk 0:01:05]} 32. Bxe8 {[%clk 0:00:34]}  Rxe8 {[%clk 0:01:04]} 33. Qg4 {[%clk 0:00:29]}  h6 {[%clk 0:01:00]} 34. Raf1 {[%clk 0:00:28]}  Bf6 {[%clk 0:00:57]} 35. hxg5 {[%clk 0:00:29]}  Bxg5 {[%clk 0:00:55]} 36. Qh5 {[%clk 0:00:29]}  Kg8 {[%clk 0:00:46]} 37. f6 {[%clk 0:00:28]}  Re5 {[%clk 0:00:32]} 38. Qg6 {[%clk 0:00:14]}  Qd7 {[%clk 0:00:18]} 39. f7+ {[%clk 0:00:11]}  Kf8 {[%clk 0:00:19]} 40. Qh7 {[%clk 0:00:11]}  Bf4+ {[%clk 0:00:17]} 41. Rxf4 {[%clk 0:00:11]}  Rh5+ {[%clk 0:00:17]} 42. Kg2 {[%clk 0:00:08]}  Qh3+ {[%clk 0:00:16]} 43. Kf2 {[%clk 0:00:08]}  Qe3+ {[%clk 0:00:15]} 44. Kg2 {[%clk 0:00:06]}  Rg5+ {[%clk 0:00:14]} 45. Kh2 {[%clk 0:00:01]}  Qxg1+ {[%clk 0:00:13]} 0-1


[Site "https://www.chess.com"]

[Event "Titled Tuesday Blitz September 13 Late 2022"]
[White "Maltsevskaya, Aleksandra"]
[Black "Shirov, Alexei"]
[WhiteFideId "24174041"]
[BlackFideId "2209390"]
[WhiteElo "2243"]
[BlackElo "2678"]
[Result "1-0"]
[Round "11"]
[TimeControl "180+1"]
[Date "2022.09.13"]
[WhiteClock "0:00:02"]
[BlackClock "0:00:02"]

1. e4 {[%clk 0:01:58]}  e5 {[%clk 0:02:59]} 2. Nf3 {[%clk 0:01:58]}  Nc6 {[%clk 0:03:00]} 3. Bb5 {[%clk 0:01:58]}  f5 {[%clk 0:03:00]} 4. d3 {[%clk 0:01:55]}  fxe4 {[%clk 0:03:00]} 5. dxe4 {[%clk 0:01:55]}  Nf6 {[%clk 0:03:01]} 6. O-O {[%clk 0:01:54]}  Bc5 {[%clk 0:03:00]} 7. Qe2 {[%clk 0:01:50]}  d6 {[%clk 0:02:55]} 8. h3 {[%clk 0:01:45]}  O-O {[%clk 0:02:53]} 9. Nc3 {[%clk 0:01:41]}  Nd4 {[%clk 0:02:49]} 10. Nxd4 {[%clk 0:01:40]}  Bxd4 {[%clk 0:02:48]} 11. Bc4+ {[%clk 0:01:39]}  Kh8 {[%clk 0:02:47]} 12. Nd5 {[%clk 0:01:39]}  Nxd5 {[%clk 0:02:44]} 13. Bxd5 {[%clk 0:01:39]}  c6 {[%clk 0:02:40]} 14. Bb3 {[%clk 0:01:39]}  Qh4 {[%clk 0:02:39]} 15. c3 {[%clk 0:01:36]}  Bc5 {[%clk 0:02:34]} 16. Be3 {[%clk 0:01:33]}  Bxh3 {[%clk 0:02:15]} 17. Bxc5 {[%clk 0:01:25]}  dxc5 {[%clk 0:01:34]} 18. gxh3 {[%clk 0:01:00]}  Qxh3 {[%clk 0:01:30]} 19. f4 {[%clk 0:00:56]}  Rxf4 {[%clk 0:01:24]} 20. Rxf4 {[%clk 0:00:53]}  exf4 {[%clk 0:01:22]} 21. Rf1 {[%clk 0:00:47]}  Rf8 {[%clk 0:01:19]} 22. Qf3 {[%clk 0:00:46]}  Qh4 {[%clk 0:01:15]} 23. Rf2 {[%clk 0:00:42]}  g5 {[%clk 0:01:13]} 24. e5 {[%clk 0:00:34]}  g4 {[%clk 0:01:12]} 25. Qh1 {[%clk 0:00:33]}  Qe7 {[%clk 0:01:06]} 26. Qe4 {[%clk 0:00:26]}  f3 {[%clk 0:00:51]} 27. e6 {[%clk 0:00:23]}  Qg7 {[%clk 0:00:39]} 28. Bc2 {[%clk 0:00:04]}  Re8 {[%clk 0:00:11]} 29. Rh2 {[%clk 0:00:03]}  h6 {[%clk 0:00:11]} 30. Rh4 {[%clk 0:00:02]}  f2+ {[%clk 0:00:08]} 31. Kf1 {[%clk 0:00:01]}  g3 {[%clk 0:00:06]} 32. Rg4 {[%clk 0:00:01]}  Qe7 {[%clk 0:00:02]} 33. Qg6 {[%clk 0:00:02]} 1-0


[Site "https://www.chess.com"]

[Event "Titled Tuesday Blitz September 13 Late 2022"]
[White "Martinez Ramirez, Lennis"]
[Black "Cardoso Cardoso, Jose Gabriel"]
[WhiteFideId "3509079"]
[BlackFideId "4430492"]
[WhiteElo "2374"]
[BlackElo "2485"]
[Result "0-1"]
[Round "11"]
[TimeControl "180+1"]
[Date "2022.09.13"]
[WhiteClock "0:00:10"]
[BlackClock "0:00:14"]

1. d4 {[%clk 0:03:00]}  d5 {[%clk 0:02:39]} 2. c4 {[%clk 0:03:01]}  dxc4 {[%clk 0:02:38]} 3. Nf3 {[%clk 0:03:02]}  Nf6 {[%clk 0:02:37]} 4. e3 {[%clk 0:03:02]}  e6 {[%clk 0:02:38]} 5. Bxc4 {[%clk 0:03:03]}  c5 {[%clk 0:02:38]} 6. O-O {[%clk 0:03:03]}  a6 {[%clk 0:02:39]} 7. Qe2 {[%clk 0:03:03]}  b5 {[%clk 0:02:31]} 8. Bd3 {[%clk 0:03:03]}  Bb7 {[%clk 0:02:30]} 9. dxc5 {[%clk 0:02:51]}  Bxc5 {[%clk 0:02:28]} 10. Bxb5+ {[%clk 0:02:50]}  axb5 {[%clk 0:01:57]} 11. Qxb5+ {[%clk 0:02:50]}  Qd7 {[%clk 0:01:57]} 12. Qxc5 {[%clk 0:02:50]}  Bxf3 {[%clk 0:01:56]} 13. gxf3 {[%clk 0:02:50]}  Nc6 {[%clk 0:01:57]} 14. Nc3 {[%clk 0:02:49]}  Ra5 {[%clk 0:01:57]} 15. Qc4 {[%clk 0:02:39]}  Rg5+ {[%clk 0:01:49]} 16. Kh1 {[%clk 0:02:39]}  O-O {[%clk 0:01:49]} 17. e4 {[%clk 0:02:33]}  Ne5 {[%clk 0:01:46]} 18. Qe2 {[%clk 0:02:31]}  Rh5 {[%clk 0:01:42]} 19. Bf4 {[%clk 0:02:31]}  Ng6 {[%clk 0:01:37]} 20. Bg3 {[%clk 0:02:31]}  e5 {[%clk 0:01:37]} 21. Rg1 {[%clk 0:02:30]}  Rh6 {[%clk 0:01:26]} 22. a4 {[%clk 0:02:23]}  Nh5 {[%clk 0:01:24]} 23. Nd5 {[%clk 0:02:23]}  Qh3 {[%clk 0:01:23]} 24. Rg2 {[%clk 0:02:20]}  Rd8 {[%clk 0:01:13]} 25. Qf1 {[%clk 0:02:10]}  Rxd5 {[%clk 0:01:07]} 26. exd5 {[%clk 0:02:09]}  Ngf4 {[%clk 0:01:04]} 27. Bxf4 {[%clk 0:02:08]}  Nxf4 {[%clk 0:01:03]} 28. Rxg7+ {[%clk 0:01:55]}  Kxg7 {[%clk 0:01:01]} 29. Qxh3 {[%clk 0:01:55]}  Rxh3 {[%clk 0:00:49]} 30. a5 {[%clk 0:01:14]}  Nxd5 {[%clk 0:00:47]} 31. a6 {[%clk 0:01:15]}  Nb6 {[%clk 0:00:27]} 32. Kg2 {[%clk 0:00:26]}  Rh6 {[%clk 0:00:26]} 33. a7 {[%clk 0:00:27]}  Na8 {[%clk 0:00:27]} 34. b4 {[%clk 0:00:20]}  Rb6 {[%clk 0:00:26]} 35. Ra4 {[%clk 0:00:20]}  Kf6 {[%clk 0:00:24]} 36. f4 {[%clk 0:00:19]}  e4 {[%clk 0:00:23]} 37. Kf1 {[%clk 0:00:19]}  Kf5 {[%clk 0:00:23]} 38. Ke2 {[%clk 0:00:19]}  Kxf4 {[%clk 0:00:23]} 39. Kd2 {[%clk 0:00:17]}  Kf3 {[%clk 0:00:22]} 40. Ke1 {[%clk 0:00:13]}  f5 {[%clk 0:00:22]} 41. Ra3+ {[%clk 0:00:13]}  Kf4 {[%clk 0:00:22]} 42. Ra4 {[%clk 0:00:10]}  Ke5 {[%clk 0:00:20]} 43. Kd2 {[%clk 0:00:10]}  Kd4 {[%clk 0:00:20]} 44. b5+ {[%clk 0:00:10]}  Kc5 {[%clk 0:00:19]} 45. Ke3 {[%clk 0:00:09]}  Rxb5 {[%clk 0:00:18]} 46. Kf4 {[%clk 0:00:10]}  Kb6 {[%clk 0:00:17]} 47. Ra1 {[%clk 0:00:09]}  Kb7 {[%clk 0:00:17]} 48. Rg1 {[%clk 0:00:07]}  Kxa7 {[%clk 0:00:15]} 49. Rg7+ {[%clk 0:00:08]}  Kb6 {[%clk 0:00:14]} 50. Rxh7 {[%clk 0:00:08]}  Nc7 {[%clk 0:00:14]} 51. Rh6+ {[%clk 0:00:09]}  Kb7 {[%clk 0:00:11]} 52. Rh5 {[%clk 0:00:09]}  Ne6+ {[%clk 0:00:12]} 53. Kg3 {[%clk 0:00:08]}  f4+ {[%clk 0:00:12]} 54. Kg4 {[%clk 0:00:08]}  Rxh5 {[%clk 0:00:13]} 55. Kxh5 {[%clk 0:00:09]}  e3 {[%clk 0:00:14]} 56. Kg4 {[%clk 0:00:10]}  e2 {[%clk 0:00:14]} 0-1


[Site "https://www.chess.com"]

[Event "Titled Tuesday Blitz September 13 Late 2022"]
[White "Melian, Juan Sebastian"]
[Black "Meduri, Aakaash"]
[WhiteFideId "3706575"]
[BlackFideId "2032252"]
[WhiteElo "1851"]
[BlackElo "2113"]
[Result "0-1"]
[Round "11"]
[TimeControl "180+1"]
[Date "2022.09.13"]
[WhiteClock "0:00:10"]
[BlackClock "0:00:08"]

1. e4 {[%clk 0:03:00]}  d5 {[%clk 0:02:51]} 2. Nc3 {[%clk 0:02:56]}  dxe4 {[%clk 0:02:49]} 3. Nxe4 {[%clk 0:02:56]}  Bf5 {[%clk 0:02:47]} 4. Ng3 {[%clk 0:02:55]}  Bg6 {[%clk 0:02:47]} 5. d4 {[%clk 0:02:50]}  e6 {[%clk 0:02:41]} 6. h4 {[%clk 0:02:37]}  h6 {[%clk 0:02:41]} 7. Nf3 {[%clk 0:02:35]}  Bd6 {[%clk 0:02:33]} 8. h5 {[%clk 0:02:27]}  Bh7 {[%clk 0:02:33]} 9. Ne2 {[%clk 0:02:27]}  Nf6 {[%clk 0:02:28]} 10. Bf4 {[%clk 0:02:23]}  O-O {[%clk 0:02:18]} 11. Be5 {[%clk 0:02:11]}  Nc6 {[%clk 0:02:05]} 12. Nc3 {[%clk 0:01:54]}  Bxe5 {[%clk 0:01:46]} 13. dxe5 {[%clk 0:01:48]}  Qxd1+ {[%clk 0:01:14]} 14. Rxd1 {[%clk 0:01:36]}  Ng4 {[%clk 0:01:15]} 15. Rd7 {[%clk 0:01:36]}  Rac8 {[%clk 0:01:15]} 16. Bd3 {[%clk 0:01:04]}  Bxd3 {[%clk 0:01:09]} 17. Rxd3 {[%clk 0:00:58]}  Ngxe5 {[%clk 0:01:09]} 18. Nxe5 {[%clk 0:00:55]}  Nxe5 {[%clk 0:01:10]} 19. Rd4 {[%clk 0:00:54]}  Rfd8 {[%clk 0:01:09]} 20. Rhh4 {[%clk 0:00:51]}  f5 {[%clk 0:01:00]} 21. Nb5 {[%clk 0:00:45]}  Rxd4 {[%clk 0:00:44]} 22. Rxd4 {[%clk 0:00:43]}  a6 {[%clk 0:00:44]} 23. Na3 {[%clk 0:00:36]}  Kf7 {[%clk 0:00:44]} 24. f4 {[%clk 0:00:34]}  Ng4 {[%clk 0:00:26]} 25. Rd7+ {[%clk 0:00:28]}  Kf8 {[%clk 0:00:25]} 26. Nc4 {[%clk 0:00:27]}  Nf6 {[%clk 0:00:24]} 27. Rd3 {[%clk 0:00:22]}  Nxh5 {[%clk 0:00:24]} 28. g3 {[%clk 0:00:23]}  Nf6 {[%clk 0:00:19]} 29. Ne5 {[%clk 0:00:24]}  Ke7 {[%clk 0:00:19]} 30. Ng6+ {[%clk 0:00:21]}  Ke8 {[%clk 0:00:19]} 31. Re3 {[%clk 0:00:19]}  Ne4 {[%clk 0:00:17]} 32. Rb3 {[%clk 0:00:20]}  b6 {[%clk 0:00:16]} 33. Ne5 {[%clk 0:00:20]}  Ke7 {[%clk 0:00:16]} 34. Ra3 {[%clk 0:00:21]}  a5 {[%clk 0:00:16]} 35. Rb3 {[%clk 0:00:20]}  g5 {[%clk 0:00:14]} 36. Ke2 {[%clk 0:00:17]}  Rg8 {[%clk 0:00:11]} 37. Rd3 {[%clk 0:00:10]}  Nd6 {[%clk 0:00:09]} 38. Kf3 {[%clk 0:00:09]}  gxf4 {[%clk 0:00:09]} 39. gxf4 {[%clk 0:00:10]}  Rg1 {[%clk 0:00:08]} 40. Rd2 {[%clk 0:00:10]}  Rf1+ {[%clk 0:00:08]} 41. Kg3 {[%clk 0:00:09]}  Ne4+ {[%clk 0:00:08]} 42. Kg2 {[%clk 0:00:10]}  Nxd2 {[%clk 0:00:08]} 0-1


[Site "https://www.chess.com"]

[Event "Titled Tuesday Blitz September 13 Late 2022"]
[White "Melikyan, Gnel"]
[Black "Alexikov, Alexander"]
[WhiteFideId "54109990"]
[BlackFideId "14103958"]
[WhiteElo "1772"]
[BlackElo "2222"]
[Result "1-0"]
[Round "11"]
[TimeControl "180+1"]
[Date "2022.09.13"]
[WhiteClock "0:00:17"]
[BlackClock "0:00:10"]

1. e4 {[%clk 0:03:00]}  c5 {[%clk 0:02:58]} 2. Nf3 {[%clk 0:02:46]}  d6 {[%clk 0:02:58]} 3. d4 {[%clk 0:02:47]}  cxd4 {[%clk 0:02:58]} 4. Nxd4 {[%clk 0:02:48]}  Nf6 {[%clk 0:02:58]} 5. f3 {[%clk 0:02:48]}  a6 {[%clk 0:02:58]} 6. c4 {[%clk 0:02:48]}  e6 {[%clk 0:02:58]} 7. Nc3 {[%clk 0:02:48]}  Be7 {[%clk 0:02:58]} 8. Be3 {[%clk 0:02:48]}  Nbd7 {[%clk 0:02:56]} 9. Be2 {[%clk 0:02:48]}  h5 {[%clk 0:02:55]} 10. O-O {[%clk 0:02:48]}  g6 {[%clk 0:02:54]} 11. Qd2 {[%clk 0:02:41]}  Qc7 {[%clk 0:02:54]} 12. Rac1 {[%clk 0:02:39]}  b6 {[%clk 0:02:54]} 13. b4 {[%clk 0:02:26]}  Bb7 {[%clk 0:02:52]} 14. Nd5 {[%clk 0:02:21]}  exd5 {[%clk 0:02:46]} 15. cxd5 {[%clk 0:02:22]}  Nc5 {[%clk 0:02:36]} 16. a4 {[%clk 0:02:12]}  Qd7 {[%clk 0:02:30]} 17. a5 {[%clk 0:01:54]}  Ncxe4 {[%clk 0:01:42]} 18. fxe4 {[%clk 0:01:50]}  bxa5 {[%clk 0:01:41]} 19. b5 {[%clk 0:01:32]}  Nxe4 {[%clk 0:01:37]} 20. Qc2 {[%clk 0:01:29]}  Bxd5 {[%clk 0:01:35]} 21. Rfd1 {[%clk 0:01:16]}  f5 {[%clk 0:01:24]} 22. Nc6 {[%clk 0:00:46]}  Bxc6 {[%clk 0:01:16]} 23. bxc6 {[%clk 0:00:46]}  Qc7 {[%clk 0:01:16]} 24. Qb2 {[%clk 0:00:42]}  O-O {[%clk 0:01:12]} 25. Qb7 {[%clk 0:00:35]}  Qd8 {[%clk 0:00:46]} 26. Bc4+ {[%clk 0:00:27]}  Kh7 {[%clk 0:00:42]} 27. c7 {[%clk 0:00:25]}  Qd7 {[%clk 0:00:40]} 28. c8=Q {[%clk 0:00:21]}  Qe8 {[%clk 0:00:10]} 29. Qcxa8 {[%clk 0:00:17]} 1-0


[Site "https://www.chess.com"]

[Event "Titled Tuesday Blitz September 13 Late 2022"]
[White "Navarrete Mendez, Gonzalo Alberto"]
[Black "Sivakumar, Shaaketh"]
[WhiteFideId "5106850"]
[BlackFideId "30940176"]
[WhiteElo "2261"]
[BlackElo "1799"]
[Result "1-0"]
[Round "11"]
[TimeControl "180+1"]
[Date "2022.09.13"]
[WhiteClock "0:02:11"]
[BlackClock "0:02:17"]

1. e4 {[%clk 0:03:00]}  e6 {[%clk 0:02:59]} 2. d4 {[%clk 0:03:00]}  d5 {[%clk 0:02:58]} 3. Nc3 {[%clk 0:03:00]}  Bb4 {[%clk 0:02:57]} 4. e5 {[%clk 0:02:59]}  Ne7 {[%clk 0:02:57]} 5. a3 {[%clk 0:02:58]}  Bxc3+ {[%clk 0:02:55]} 6. bxc3 {[%clk 0:02:59]}  c5 {[%clk 0:02:55]} 7. Qg4 {[%clk 0:02:58]}  Kf8 {[%clk 0:02:51]} 8. Nh3 {[%clk 0:02:34]}  b6 {[%clk 0:02:46]} 9. Nf4 {[%clk 0:02:32]}  Nf5 {[%clk 0:02:36]} 10. Bd3 {[%clk 0:02:28]}  Nh6 {[%clk 0:02:27]} 11. Qf3 {[%clk 0:02:18]}  Ba6 {[%clk 0:02:22]} 12. Nxe6+ {[%clk 0:02:16]}  Ke7 {[%clk 0:02:21]} 13. Nxd8 {[%clk 0:02:14]}  Rxd8 {[%clk 0:02:17]} 14. Bg5+ {[%clk 0:02:11]} 1-0


[Site "https://www.chess.com"]

[Event "Titled Tuesday Blitz September 13 Late 2022"]
[White "Sadhwani, Raunak"]
[Black "Andreikin, Dmitry"]
[WhiteFideId "35093487"]
[BlackFideId "4158814"]
[WhiteElo "2656"]
[BlackElo "2736"]
[Result "0-1"]
[Round "11"]
[TimeControl "180+1"]
[Date "2022.09.13"]
[WhiteClock "0:00:13"]
[BlackClock "0:00:12"]

1. d4 {[%clk 0:03:00]}  d5 {[%clk 0:02:58]} 2. Nf3 {[%clk 0:03:01]}  Nf6 {[%clk 0:02:58]} 3. Bf4 {[%clk 0:03:01]}  c5 {[%clk 0:02:56]} 4. e3 {[%clk 0:03:02]}  Nc6 {[%clk 0:02:55]} 5. Nbd2 {[%clk 0:03:02]}  Bg4 {[%clk 0:02:52]} 6. c3 {[%clk 0:02:59]}  a6 {[%clk 0:02:49]} 7. h3 {[%clk 0:02:49]}  Bxf3 {[%clk 0:02:45]} 8. Nxf3 {[%clk 0:02:50]}  e6 {[%clk 0:02:45]} 9. Bd3 {[%clk 0:02:49]}  Bd6 {[%clk 0:02:44]} 10. Bxd6 {[%clk 0:02:46]}  Qxd6 {[%clk 0:02:45]} 11. O-O {[%clk 0:02:47]}  O-O {[%clk 0:02:45]} 12. Qd2 {[%clk 0:02:43]}  e5 {[%clk 0:02:37]} 13. dxe5 {[%clk 0:02:43]}  Nxe5 {[%clk 0:02:38]} 14. Nxe5 {[%clk 0:02:44]}  Qxe5 {[%clk 0:02:39]} 15. Rfd1 {[%clk 0:02:42]}  Rad8 {[%clk 0:02:37]} 16. Qe2 {[%clk 0:02:40]}  g6 {[%clk 0:02:35]} 17. Rd2 {[%clk 0:02:40]}  Rd6 {[%clk 0:02:26]} 18. Rad1 {[%clk 0:02:40]}  Rfd8 {[%clk 0:02:27]} 19. Bc2 {[%clk 0:02:40]}  b5 {[%clk 0:02:26]} 20. Bb3 {[%clk 0:02:39]}  Ne4 {[%clk 0:02:19]} 21. f4 {[%clk 0:02:26]}  Qe6 {[%clk 0:02:13]} 22. Qf3 {[%clk 0:02:25]}  Nxd2 {[%clk 0:02:11]} 23. Rxd2 {[%clk 0:02:26]}  Qe4 {[%clk 0:02:04]} 24. Kf2 {[%clk 0:02:22]}  Qxf3+ {[%clk 0:01:59]} 25. Kxf3 {[%clk 0:02:23]}  Kg7 {[%clk 0:01:53]} 26. g4 {[%clk 0:02:23]}  f5 {[%clk 0:01:49]} 27. gxf5 {[%clk 0:02:11]}  gxf5 {[%clk 0:01:50]} 28. Bc2 {[%clk 0:02:12]}  Kf6 {[%clk 0:01:46]} 29. Rg2 {[%clk 0:02:02]}  d4 {[%clk 0:01:46]} 30. cxd4 {[%clk 0:02:01]}  cxd4 {[%clk 0:01:46]} 31. e4 {[%clk 0:02:00]}  fxe4+ {[%clk 0:01:43]} 32. Bxe4 {[%clk 0:02:01]}  d3 {[%clk 0:01:42]} 33. Rd2 {[%clk 0:02:01]}  h5 {[%clk 0:01:25]} 34. h4 {[%clk 0:01:49]}  Rd4 {[%clk 0:01:18]} 35. Ke3 {[%clk 0:01:49]}  Ra4 {[%clk 0:01:16]} 36. Bxd3 {[%clk 0:01:32]}  Re8+ {[%clk 0:01:15]} 37. Kf3 {[%clk 0:01:27]}  Rd4 {[%clk 0:01:14]} 38. a3 {[%clk 0:01:18]}  Re7 {[%clk 0:01:12]} 39. Rd1 {[%clk 0:01:17]}  a5 {[%clk 0:01:08]} 40. Rd2 {[%clk 0:01:14]}  b4 {[%clk 0:01:07]} 41. axb4 {[%clk 0:01:15]}  axb4 {[%clk 0:01:08]} 42. Rd1 {[%clk 0:01:16]}  Rd6 {[%clk 0:01:04]} 43. Rd2 {[%clk 0:01:16]}  Re1 {[%clk 0:00:59]} 44. Kf2 {[%clk 0:00:59]}  Re7 {[%clk 0:00:53]} 45. Kf3 {[%clk 0:00:59]}  b3 {[%clk 0:00:52]} 46. Rd1 {[%clk 0:00:59]}  Re8 {[%clk 0:00:51]} 47. Kf2 {[%clk 0:00:56]}  Rd4 {[%clk 0:00:49]} 48. Kf3 {[%clk 0:00:56]}  Re7 {[%clk 0:00:44]} 49. Rd2 {[%clk 0:00:56]}  Ree4 {[%clk 0:00:43]} 50. Rg2 {[%clk 0:00:47]}  Rxf4+ {[%clk 0:00:41]} 51. Ke3 {[%clk 0:00:47]}  Rxh4 {[%clk 0:00:39]} 52. Rg6+ {[%clk 0:00:48]}  Ke7 {[%clk 0:00:37]} 53. Rh6 {[%clk 0:00:40]}  Rd6 {[%clk 0:00:30]} 54. Rh7+ {[%clk 0:00:40]}  Kf6 {[%clk 0:00:31]} 55. Bf1 {[%clk 0:00:24]}  Rh2 {[%clk 0:00:30]} 56. Bc4 {[%clk 0:00:24]}  Rh3+ {[%clk 0:00:25]} 57. Ke2 {[%clk 0:00:23]}  Rd4 {[%clk 0:00:25]} 58. Bg8 {[%clk 0:00:20]}  Rg4 {[%clk 0:00:22]} 59. Bd5 {[%clk 0:00:19]}  Rg5 {[%clk 0:00:20]} 60. Rf7+ {[%clk 0:00:14]}  Kg6 {[%clk 0:00:17]} 61. Rd7 {[%clk 0:00:14]}  Kf6 {[%clk 0:00:15]} 62. Rf7+ {[%clk 0:00:13]}  Ke5 {[%clk 0:00:15]} 63. Bf3 {[%clk 0:00:13]}  Rf5 {[%clk 0:00:12]} 0-1


[Site "https://www.chess.com"]